[Event "Titled Tuesday Blitz November 14 Late 2023"]
[White "MKlose11"]
[Black "Likvidator228"]
[WhiteElo "2679"]
[BlackElo "2572"]
[Result "1/2-1/2"]
[Round "10"]
[TimeControl "180+1"]
[Date "2023.11.14"]
[WhiteClock "0:00:18"]
[BlackClock "0:00:05"]
[Board "31"]

1. e4 {[%clk 0:02:55]}  c5 {[%clk 0:02:58]} 2. Nc3 {[%clk 0:02:55]}  g6 {[%clk 0:02:57]} 3. g3 {[%clk 0:02:55]}  Bg7 {[%clk 0:02:57]} 4. d3 {[%clk 0:02:56]}  Nc6 {[%clk 0:02:57]} 5. Be3 {[%clk 0:02:56]}  d6 {[%clk 0:02:54]} 6. Qd2 {[%clk 0:02:56]}  h5 {[%clk 0:02:50]} 7. h3 {[%clk 0:02:56]}  e6 {[%clk 0:02:45]} 8. Bg2 {[%clk 0:02:55]}  Nge7 {[%clk 0:02:45]} 9. Nge2 {[%clk 0:02:54]}  Nd4 {[%clk 0:02:44]} 10. O-O {[%clk 0:02:54]}  Rb8 {[%clk 0:02:33]} 11. Nd1 {[%clk 0:02:54]}  b5 {[%clk 0:02:31]} 12. c3 {[%clk 0:02:55]}  Nxe2+ {[%clk 0:02:31]} 13. Qxe2 {[%clk 0:02:55]}  b4 {[%clk 0:02:29]} 14. Qd2 {[%clk 0:02:55]}  bxc3 {[%clk 0:02:28]} 15. bxc3 {[%clk 0:02:55]}  O-O {[%clk 0:02:24]} 16. Bh6 {[%clk 0:02:53]}  Ba6 {[%clk 0:02:17]} 17. Bxg7 {[%clk 0:02:53]}  Kxg7 {[%clk 0:02:17]} 18. Re1 {[%clk 0:02:53]}  e5 {[%clk 0:02:11]} 19. Ne3 {[%clk 0:02:48]}  Qa5 {[%clk 0:02:07]} 20. f4 {[%clk 0:02:45]}  f6 {[%clk 0:02:07]} 21. h4 {[%clk 0:02:40]}  Qb5 {[%clk 0:02:00]} 22. Nc4 {[%clk 0:02:34]}  Qd7 {[%clk 0:01:54]} 23. Ne3 {[%clk 0:02:33]}  Qb5 {[%clk 0:01:53]} 24. d4 {[%clk 0:02:26]}  cxd4 {[%clk 0:01:47]} 25. cxd4 {[%clk 0:02:26]}  Qb4 {[%clk 0:01:39]} 26. Qxb4 {[%clk 0:02:18]}  Rxb4 {[%clk 0:01:38]} 27. dxe5 {[%clk 0:02:19]}  dxe5 {[%clk 0:01:38]} 28. Rac1 {[%clk 0:02:16]}  Rb7 {[%clk 0:01:27]} 29. Rc5 {[%clk 0:02:13]}  exf4 {[%clk 0:01:26]} 30. gxf4 {[%clk 0:02:12]}  Rd7 {[%clk 0:01:23]} 31. Ra5 {[%clk 0:02:03]}  Bd3 {[%clk 0:01:11]} 32. Rd1 {[%clk 0:01:57]}  Rfd8 {[%clk 0:01:11]} 33. Kf2 {[%clk 0:01:39]}  Nc6 {[%clk 0:00:59]} 34. Rc5 {[%clk 0:01:36]}  Ne7 {[%clk 0:00:54]} 35. Bf3 {[%clk 0:01:24]}  Kf7 {[%clk 0:00:50]} 36. Rd2 {[%clk 0:01:21]}  Ba6 {[%clk 0:00:49]} 37. Rxd7 {[%clk 0:01:19]}  Rxd7 {[%clk 0:00:49]} 38. Ra5 {[%clk 0:01:20]}  Bd3 {[%clk 0:00:47]} 39. Nd5 {[%clk 0:01:16]}  Nxd5 {[%clk 0:00:46]} 40. exd5 {[%clk 0:01:17]}  Ke7 {[%clk 0:00:36]} 41. Ke3 {[%clk 0:01:17]}  Bf1 {[%clk 0:00:36]} 42. Kd4 {[%clk 0:01:12]}  Kd6 {[%clk 0:00:31]} 43. Be4 {[%clk 0:01:06]}  f5 {[%clk 0:00:30]} 44. Bf3 {[%clk 0:01:07]}  Rb7 {[%clk 0:00:27]} 45. a3 {[%clk 0:01:03]}  Rc7 {[%clk 0:00:26]} 46. Ra4 {[%clk 0:00:53]}  Rb7 {[%clk 0:00:14]} 47. Ra5 {[%clk 0:00:40]}  Rc7 {[%clk 0:00:13]} 48. Ke3 {[%clk 0:00:30]}  Rc3+ {[%clk 0:00:13]} 49. Kf2 {[%clk 0:00:31]}  Bc4 {[%clk 0:00:08]} 50. Bh1 {[%clk 0:00:22]}  Rd3 {[%clk 0:00:07]} 51. Ke1 {[%clk 0:00:20]}  Bxd5 {[%clk 0:00:06]} 52. Ra6+ {[%clk 0:00:21]}  Kc5 {[%clk 0:00:06]} 53. Bxd5 {[%clk 0:00:19]}  Kxd5 {[%clk 0:00:06]} 54. Rxa7 {[%clk 0:00:18]}  Ke4 {[%clk 0:00:06]} 55. Ra4+ {[%clk 0:00:18]}  Kf3 {[%clk 0:00:06]} 56. Ra6 {[%clk 0:00:14]}  Kxf4 {[%clk 0:00:05]} 57. a4 {[%clk 0:00:14]}  Kg4 {[%clk 0:00:04]} 58. Rxg6+ {[%clk 0:00:14]}  Kxh4 {[%clk 0:00:04]} 59. a5 {[%clk 0:00:14]}  Ra3 {[%clk 0:00:04]} 60. a6 {[%clk 0:00:14]}  f4 {[%clk 0:00:05]} 61. Kf2 {[%clk 0:00:14]}  Kh3 {[%clk 0:00:05]} 62. Rf6 {[%clk 0:00:14]}  Kg4 {[%clk 0:00:02]} 63. Rh6 {[%clk 0:00:14]}  h4 {[%clk 0:00:02]} 64. Rg6+ {[%clk 0:00:15]}  Kf5 {[%clk 0:00:03]} 65. Rb6 {[%clk 0:00:15]}  Kg4 {[%clk 0:00:02]} 66. Rg6+ {[%clk 0:00:14]}  Kf5 {[%clk 0:00:03]} 67. Rb6 {[%clk 0:00:15]}  h3 {[%clk 0:00:03]} 68. Kg1 {[%clk 0:00:15]}  Kg4 {[%clk 0:00:04]} 69. Kh2 {[%clk 0:00:15]}  Ra2+ {[%clk 0:00:03]} 70. Kh1 {[%clk 0:00:16]}  Kg3 {[%clk 0:00:03]} 71. Rg6+ {[%clk 0:00:16]}  Kf3 {[%clk 0:00:04]} 72. Rb6 {[%clk 0:00:17]}  Kg4 {[%clk 0:00:03]} 73. Rg6+ {[%clk 0:00:17]}  Kh5 {[%clk 0:00:04]} 74. Rb6 {[%clk 0:00:18]}  Kh4 {[%clk 0:00:04]} 75. Rf6 {[%clk 0:00:17]}  Kg4 {[%clk 0:00:03]} 76. Rg6+ {[%clk 0:00:17]}  Kf5 {[%clk 0:00:04]} 77. Rb6 {[%clk 0:00:17]}  Ke4 {[%clk 0:00:04]} 78. Rb4+ {[%clk 0:00:17]}  Kf5 {[%clk 0:00:04]} 79. Rb5+ {[%clk 0:00:17]}  Kg6 {[%clk 0:00:05]} 80. Rb6+ {[%clk 0:00:17]}  Kg5 {[%clk 0:00:06]} 81. Rc6 {[%clk 0:00:18]}  Kg4 {[%clk 0:00:05]} 82. Rg6+ {[%clk 0:00:18]} 1/2-1/2


[Site "https://www.chess.com"]

[Event "Titled Tuesday Blitz November 14 Late 2023"]
[White "Sakun, Volodymyr"]
[Black "Weimarraner"]
[WhiteFideId "14114062"]
[WhiteElo "2619"]
[BlackElo "2553"]
[Result "1/2-1/2"]
[Round "10"]
[TimeControl "180+1"]
[Date "2023.11.14"]
[WhiteClock "0:00:08"]
[BlackClock "0:00:18"]
[Board "33"]

1. c4 {[%clk 0:03:00]}  Nf6 {[%clk 0:02:59]} 2. Nc3 {[%clk 0:03:00]}  g6 {[%clk 0:03:00]} 3. e4 {[%clk 0:02:58]}  d6 {[%clk 0:03:00]} 4. d4 {[%clk 0:02:58]}  Bg7 {[%clk 0:03:01]} 5. Nf3 {[%clk 0:02:58]}  O-O {[%clk 0:03:01]} 6. Be2 {[%clk 0:02:58]}  c5 {[%clk 0:03:01]} 7. d5 {[%clk 0:02:58]}  e6 {[%clk 0:03:00]} 8. h3 {[%clk 0:02:52]}  exd5 {[%clk 0:03:00]} 9. exd5 {[%clk 0:02:52]}  Re8 {[%clk 0:02:53]} 10. O-O {[%clk 0:02:51]}  Ne4 {[%clk 0:02:52]} 11. Nxe4 {[%clk 0:02:48]}  Rxe4 {[%clk 0:02:52]} 12. Bd3 {[%clk 0:02:48]}  Re8 {[%clk 0:02:52]} 13. Bg5 {[%clk 0:02:46]}  Qb6 {[%clk 0:02:45]} 14. Rb1 {[%clk 0:02:44]}  Na6 {[%clk 0:02:24]} 15. Qa4 {[%clk 0:02:22]}  Nc7 {[%clk 0:02:07]} 16. Rfe1 {[%clk 0:02:18]}  Kf8 {[%clk 0:01:52]} 17. Bd2 {[%clk 0:02:11]}  Qa6 {[%clk 0:01:49]} 18. Rxe8+ {[%clk 0:01:51]}  Nxe8 {[%clk 0:01:48]} 19. Qxa6 {[%clk 0:01:52]}  bxa6 {[%clk 0:01:49]} 20. Ba5 {[%clk 0:01:52]}  Rb8 {[%clk 0:01:44]} 21. b3 {[%clk 0:01:52]}  h6 {[%clk 0:01:31]} 22. Re1 {[%clk 0:01:50]}  Bd7 {[%clk 0:01:27]} 23. Nd2 {[%clk 0:01:39]}  f5 {[%clk 0:01:26]} 24. f4 {[%clk 0:01:33]}  Kf7 {[%clk 0:01:25]} 25. Nf3 {[%clk 0:01:29]}  Rb7 {[%clk 0:01:20]} 26. Kf2 {[%clk 0:01:23]}  Nf6 {[%clk 0:01:13]} 27. Ne5+ {[%clk 0:01:05]}  dxe5 {[%clk 0:01:08]} 28. fxe5 {[%clk 0:01:06]}  Ne4+ {[%clk 0:00:31]} 29. Bxe4 {[%clk 0:01:06]}  Bxe5 {[%clk 0:00:23]} 30. Bf3 {[%clk 0:00:49]}  Bd6 {[%clk 0:00:19]} 31. Bc3 {[%clk 0:00:46]}  Rb8 {[%clk 0:00:18]} 32. g4 {[%clk 0:00:33]}  Re8 {[%clk 0:00:16]} 33. Rxe8 {[%clk 0:00:22]}  Kxe8 {[%clk 0:00:14]} 34. Bd2 {[%clk 0:00:22]}  g5 {[%clk 0:00:12]} 35. Ke2 {[%clk 0:00:18]}  Kf7 {[%clk 0:00:12]} 36. Be3 {[%clk 0:00:17]}  Kf6 {[%clk 0:00:09]} 37. b4 {[%clk 0:00:17]}  cxb4 {[%clk 0:00:07]} 38. c5 {[%clk 0:00:17]}  Be5 {[%clk 0:00:06]} 39. c6 {[%clk 0:00:14]}  Bc8 {[%clk 0:00:07]} 40. Bc5 {[%clk 0:00:14]}  fxg4 {[%clk 0:00:05]} 41. Bxg4 {[%clk 0:00:12]}  Bxg4+ {[%clk 0:00:03]} 42. hxg4 {[%clk 0:00:11]}  a5 {[%clk 0:00:01]} 43. d6 {[%clk 0:00:09]}  Ke6 {[%clk 0:00:01]} 44. c7 {[%clk 0:00:03]}  Kd7 {[%clk 0:00:01]} 45. Kd3 {[%clk 0:00:04]}  Bf4 {[%clk 0:00:02]} 46. Kc4 {[%clk 0:00:04]}  h5 {[%clk 0:00:02]} 47. Kb5 {[%clk 0:00:03]}  hxg4 {[%clk 0:00:02]} 48. Kxa5 {[%clk 0:00:03]}  g3 {[%clk 0:00:03]} 49. Kxb4 {[%clk 0:00:03]}  g2 {[%clk 0:00:03]} 50. Kc4 {[%clk 0:00:04]}  Bxd6 {[%clk 0:00:03]} 51. Bg1 {[%clk 0:00:03]}  Bxc7 {[%clk 0:00:02]} 52. Bxa7 {[%clk 0:00:04]}  Bb6 {[%clk 0:00:03]} 53. Bxb6 {[%clk 0:00:04]}  Kc6 {[%clk 0:00:04]} 54. Bg1 {[%clk 0:00:04]}  Kb7 {[%clk 0:00:04]} 55. Kd3 {[%clk 0:00:04]}  Ka8 {[%clk 0:00:05]} 56. Ke2 {[%clk 0:00:04]}  Kb7 {[%clk 0:00:05]} 57. Kf3 {[%clk 0:00:05]}  Ka8 {[%clk 0:00:06]} 58. Kg4 {[%clk 0:00:05]}  Kb7 {[%clk 0:00:07]} 59. Kg3 {[%clk 0:00:05]}  Ka8 {[%clk 0:00:08]} 60. Kf3 {[%clk 0:00:06]}  Kb7 {[%clk 0:00:09]} 61. Kg3 {[%clk 0:00:06]}  Ka8 {[%clk 0:00:10]} 62. Kf3 {[%clk 0:00:07]}  Kb7 {[%clk 0:00:11]} 63. Bf2 {[%clk 0:00:07]}  Ka8 {[%clk 0:00:12]} 64. Ke2 {[%clk 0:00:07]}  Kb7 {[%clk 0:00:13]} 65. Bg1 {[%clk 0:00:07]}  Ka8 {[%clk 0:00:12]} 66. Kd2 {[%clk 0:00:08]}  Kb7 {[%clk 0:00:13]} 67. Kc3 {[%clk 0:00:08]}  Ka8 {[%clk 0:00:14]} 68. Kb3 {[%clk 0:00:09]}  Kb7 {[%clk 0:00:15]} 69. a4 {[%clk 0:00:09]}  Ka8 {[%clk 0:00:16]} 70. Kb4 {[%clk 0:00:10]}  Kb7 {[%clk 0:00:16]} 71. a5 {[%clk 0:00:10]}  Ka8 {[%clk 0:00:17]} 72. Kb5 {[%clk 0:00:11]}  g4 {[%clk 0:00:18]} 73. a6 {[%clk 0:00:10]}  Kb8 {[%clk 0:00:18]} 74. Kb6 {[%clk 0:00:09]}  Ka8 {[%clk 0:00:18]} 75. Ka5 {[%clk 0:00:08]}  Kb8 {[%clk 0:00:18]} 76. Kb5 {[%clk 0:00:08]}  Ka8 {[%clk 0:00:18]} 77. Ka5 {[%clk 0:00:07]}  Kb8 {[%clk 0:00:15]} 78. Kb4 {[%clk 0:00:07]}  Ka8 {[%clk 0:00:15]} 79. Kc4 {[%clk 0:00:08]}  Kb8 {[%clk 0:00:15]} 80. Kd5 {[%clk 0:00:08]}  Ka8 {[%clk 0:00:16]} 81. Ke4 {[%clk 0:00:08]}  Kb8 {[%clk 0:00:16]} 82. Kf5 {[%clk 0:00:08]}  Ka8 {[%clk 0:00:17]} 83. Kxg4 {[%clk 0:00:08]}  Kb8 {[%clk 0:00:17]} 84. Kf5 {[%clk 0:00:08]}  Ka8 {[%clk 0:00:18]} 85. Ke6 {[%clk 0:00:08]}  Kb8 {[%clk 0:00:18]} 86. Kd5 {[%clk 0:00:09]}  Ka8 {[%clk 0:00:18]} 87. Kc5 {[%clk 0:00:09]}  Kb8 {[%clk 0:00:19]} 88. Kb5 {[%clk 0:00:09]}  Ka8 {[%clk 0:00:19]} 89. Bf2 {[%clk 0:00:10]}  Kb8 {[%clk 0:00:19]} 90. Kc6 {[%clk 0:00:09]}  Ka8 {[%clk 0:00:20]} 91. Kc7 {[%clk 0:00:07]}  g1=Q {[%clk 0:00:18]} 92. Bxg1 {[%clk 0:00:08]} 1/2-1/2


[Site "https://www.chess.com"]

[Event "Titled Tuesday Blitz November 14 Late 2023"]
[White "Gimenez Aguirre, Alejo Ismael"]
[Black "Vafin, Ayrat"]
[WhiteFideId "32041667"]
[BlackFideId "4146530"]
[WhiteElo "2619"]
[BlackElo "2543"]
[Result "1/2-1/2"]
[Round "10"]
[TimeControl "180+1"]
[Date "2023.11.14"]
[WhiteClock "0:00:48"]
[BlackClock "0:00:21"]
[Board "34"]

1. e4 {[%clk 0:02:58]}  e5 {[%clk 0:02:59]} 2. Nf3 {[%clk 0:02:57]}  Nf6 {[%clk 0:03:00]} 3. Nxe5 {[%clk 0:02:57]}  d6 {[%clk 0:03:01]} 4. Nf3 {[%clk 0:02:57]}  Nxe4 {[%clk 0:03:01]} 5. Nc3 {[%clk 0:02:58]}  Nxc3 {[%clk 0:03:02]} 6. dxc3 {[%clk 0:02:59]}  Be7 {[%clk 0:03:02]} 7. Bd3 {[%clk 0:02:58]}  Nc6 {[%clk 0:03:02]} 8. Be3 {[%clk 0:02:58]}  Be6 {[%clk 0:03:02]} 9. Qd2 {[%clk 0:02:59]}  Qd7 {[%clk 0:03:03]} 10. O-O-O {[%clk 0:02:53]}  Bf6 {[%clk 0:03:02]} 11. Kb1 {[%clk 0:02:53]}  O-O-O {[%clk 0:03:02]} 12. h3 {[%clk 0:02:53]}  h6 {[%clk 0:03:00]} 13. Rhe1 {[%clk 0:02:50]}  Kb8 {[%clk 0:02:57]} 14. Nd4 {[%clk 0:02:47]}  Nxd4 {[%clk 0:02:56]} 15. cxd4 {[%clk 0:02:47]}  Bf5 {[%clk 0:02:53]} 16. Qb4 {[%clk 0:02:47]}  d5 {[%clk 0:02:40]} 17. Bf4 {[%clk 0:02:43]}  Bxd3 {[%clk 0:02:23]} 18. Rxd3 {[%clk 0:02:42]}  Rhe8 {[%clk 0:02:24]} 19. Be3 {[%clk 0:01:56]}  Re6 {[%clk 0:02:19]} 20. Rb3 {[%clk 0:01:53]}  Rb6 {[%clk 0:02:16]} 21. Qc3 {[%clk 0:01:53]}  Rxb3 {[%clk 0:02:14]} 22. axb3 {[%clk 0:01:51]}  Re8 {[%clk 0:02:15]} 23. b4 {[%clk 0:01:50]}  a6 {[%clk 0:02:05]} 24. b3 {[%clk 0:01:46]}  Qc6 {[%clk 0:01:54]} 25. Qxc6 {[%clk 0:01:45]}  bxc6 {[%clk 0:01:55]} 26. c3 {[%clk 0:01:45]}  Kb7 {[%clk 0:01:48]} 27. Kc2 {[%clk 0:01:45]}  h5 {[%clk 0:01:47]} 28. Kd3 {[%clk 0:01:45]}  g6 {[%clk 0:01:47]} 29. Ra1 {[%clk 0:01:44]}  Re4 {[%clk 0:01:45]} 30. f3 {[%clk 0:01:44]}  Re8 {[%clk 0:01:44]} 31. g4 {[%clk 0:01:44]}  Rh8 {[%clk 0:01:23]} 32. g5 {[%clk 0:01:35]}  Bg7 {[%clk 0:01:21]} 33. f4 {[%clk 0:01:35]}  Re8 {[%clk 0:01:21]} 34. f5 {[%clk 0:01:35]}  gxf5 {[%clk 0:00:56]} 35. Rf1 {[%clk 0:01:35]}  Kc8 {[%clk 0:00:52]} 36. Rxf5 {[%clk 0:01:34]}  Re7 {[%clk 0:00:53]} 37. Bf2 {[%clk 0:01:31]}  Kd7 {[%clk 0:00:50]} 38. Bg3 {[%clk 0:01:31]}  Ke8 {[%clk 0:00:49]} 39. Rf1 {[%clk 0:01:30]}  Re6 {[%clk 0:00:26]} 40. Bxc7 {[%clk 0:01:27]}  h4 {[%clk 0:00:24]} 41. Bf4 {[%clk 0:01:23]}  Re4 {[%clk 0:00:21]} 42. Rf3 {[%clk 0:01:22]}  Ke7 {[%clk 0:00:22]} 43. Re3 {[%clk 0:01:10]}  Rxe3+ {[%clk 0:00:22]} 44. Kxe3 {[%clk 0:01:11]}  Ke6 {[%clk 0:00:22]} 45. Kf3 {[%clk 0:01:09]}  Kf5 {[%clk 0:00:22]} 46. Be3 {[%clk 0:01:09]}  Bf8 {[%clk 0:00:19]} 47. Bf2 {[%clk 0:01:00]}  Kxg5 {[%clk 0:00:18]} 48. Be3+ {[%clk 0:00:59]}  Kf5 {[%clk 0:00:19]} 49. Bd2 {[%clk 0:00:59]}  Be7 {[%clk 0:00:19]} 50. Be1 {[%clk 0:00:58]}  Bg5 {[%clk 0:00:19]} 51. c4 {[%clk 0:00:57]}  Bf6 {[%clk 0:00:19]} 52. Bc3 {[%clk 0:00:57]}  Be7 {[%clk 0:00:19]} 53. Bd2 {[%clk 0:00:56]}  Bf6 {[%clk 0:00:19]} 54. Be3 {[%clk 0:00:56]}  Be7 {[%clk 0:00:20]} 55. Bd2 {[%clk 0:00:56]}  Bf6 {[%clk 0:00:20]} 56. Bc3 {[%clk 0:00:57]}  Be7 {[%clk 0:00:21]} 57. Ke3 {[%clk 0:00:48]}  Bg5+ {[%clk 0:00:21]} 58. Kf3 {[%clk 0:00:48]}  Be7 {[%clk 0:00:21]} 1/2-1/2


[Site "https://www.chess.com"]

[Event "Titled Tuesday Blitz November 14 Late 2023"]
[White "Omariev, Maksim"]
[Black "Golubev, Mikhail"]
[WhiteFideId "4193423"]
[BlackFideId "14100983"]
[WhiteElo "2525"]
[BlackElo "2613"]
[Result "1-0"]
[Round "10"]
[TimeControl "180+1"]
[Date "2023.11.14"]
[WhiteClock "0:00:05"]
[BlackClock "0:00:00"]
[Board "35"]

1. g4 {[%clk 0:03:00]}  Nh6 {[%clk 0:02:56]} 2. g5 {[%clk 0:02:59]}  Nf5 {[%clk 0:02:51]} 3. h4 {[%clk 0:02:55]}  d5 {[%clk 0:02:47]} 4. Bg2 {[%clk 0:02:52]}  Qd6 {[%clk 0:02:42]} 5. Nc3 {[%clk 0:02:48]}  c6 {[%clk 0:02:35]} 6. d3 {[%clk 0:02:42]}  d4 {[%clk 0:02:32]} 7. Ne4 {[%clk 0:02:42]}  Qc7 {[%clk 0:02:32]} 8. Nf3 {[%clk 0:02:36]}  Na6 {[%clk 0:02:21]} 9. c3 {[%clk 0:01:52]}  e5 {[%clk 0:02:21]} 10. Qa4 {[%clk 0:01:38]}  Be6 {[%clk 0:02:11]} 11. Bd2 {[%clk 0:01:30]}  O-O-O {[%clk 0:02:06]} 12. c4 {[%clk 0:01:22]}  Nd6 {[%clk 0:01:54]} 13. Ba5 {[%clk 0:01:03]}  b6 {[%clk 0:01:51]} 14. Bd2 {[%clk 0:00:56]}  Nxe4 {[%clk 0:01:51]} 15. Qxa6+ {[%clk 0:00:55]}  Kb8 {[%clk 0:01:35]} 16. dxe4 {[%clk 0:00:55]}  Bc8 {[%clk 0:01:26]} 17. Qa4 {[%clk 0:00:53]}  c5 {[%clk 0:01:26]} 18. O-O-O {[%clk 0:00:46]}  Bb7 {[%clk 0:01:21]} 19. Ne1 {[%clk 0:00:44]}  Bc6 {[%clk 0:01:21]} 20. Qb3 {[%clk 0:00:43]}  Qb7 {[%clk 0:01:21]} 21. f3 {[%clk 0:00:39]}  h6 {[%clk 0:01:13]} 22. Nd3 {[%clk 0:00:38]}  Bd6 {[%clk 0:01:08]} 23. gxh6 {[%clk 0:00:33]}  gxh6 {[%clk 0:01:09]} 24. Bh3 {[%clk 0:00:33]}  Qa6 {[%clk 0:00:59]} 25. Kb1 {[%clk 0:00:20]}  Ka8 {[%clk 0:00:48]} 26. Rc1 {[%clk 0:00:20]}  Rb8 {[%clk 0:00:45]} 27. Qa3 {[%clk 0:00:17]}  Qb7 {[%clk 0:00:45]} 28. Rhg1 {[%clk 0:00:15]}  b5 {[%clk 0:00:41]} 29. Nxc5 {[%clk 0:00:14]}  Bxc5 {[%clk 0:00:40]} 30. Qxc5 {[%clk 0:00:13]}  bxc4 {[%clk 0:00:41]} 31. Rc2 {[%clk 0:00:06]}  d3 {[%clk 0:00:28]} 32. Qxc4 {[%clk 0:00:03]}  dxc2+ {[%clk 0:00:27]} 33. Qxc2 {[%clk 0:00:04]}  Bb5 {[%clk 0:00:26]} 34. Bc3 {[%clk 0:00:04]}  f6 {[%clk 0:00:24]} 35. Be6 {[%clk 0:00:04]}  Qa6 {[%clk 0:00:22]} 36. Bd5+ {[%clk 0:00:04]}  Bc6 {[%clk 0:00:22]} 37. Bxc6+ {[%clk 0:00:04]}  Qxc6 {[%clk 0:00:22]} 38. Rd1 {[%clk 0:00:03]}  Rhd8 {[%clk 0:00:21]} 39. h5 {[%clk 0:00:03]}  Rxd1+ {[%clk 0:00:17]} 40. Qxd1 {[%clk 0:00:04]}  a6 {[%clk 0:00:16]} 41. Qd2 {[%clk 0:00:04]}  Rc8 {[%clk 0:00:15]} 42. Qxh6 {[%clk 0:00:04]}  Rd8 {[%clk 0:00:13]} 43. Qe3 {[%clk 0:00:03]}  Qa4 {[%clk 0:00:11]} 44. b3 {[%clk 0:00:03]}  Qc6 {[%clk 0:00:09]} 45. h6 {[%clk 0:00:04]}  Qe8 {[%clk 0:00:08]} 46. Kb2 {[%clk 0:00:03]}  Rd7 {[%clk 0:00:07]} 47. a4 {[%clk 0:00:03]}  Qe6 {[%clk 0:00:06]} 48. a5 {[%clk 0:00:03]}  Kb7 {[%clk 0:00:06]} 49. Bd2 {[%clk 0:00:02]}  Rh7 {[%clk 0:00:05]} 50. Bc1 {[%clk 0:00:02]}  Qd7 {[%clk 0:00:05]} 51. Qc3 {[%clk 0:00:02]}  Qd4 {[%clk 0:00:04]} 52. Qxd4 {[%clk 0:00:03]}  exd4 {[%clk 0:00:04]} 53. Kc2 {[%clk 0:00:03]}  Rc7+ {[%clk 0:00:04]} 54. Kd1 {[%clk 0:00:03]}  Kc6 {[%clk 0:00:04]} 55. Bb2 {[%clk 0:00:03]}  Rd7 {[%clk 0:00:04]} 56. Kd2 {[%clk 0:00:03]}  Kc5 {[%clk 0:00:04]} 57. Kd3 {[%clk 0:00:03]}  Kb4 {[%clk 0:00:02]} 58. Bxd4 {[%clk 0:00:04]}  Kxb3 {[%clk 0:00:02]} 59. Ke3 {[%clk 0:00:04]}  Ka4 {[%clk 0:00:02]} 60. Bxf6 {[%clk 0:00:03]}  Rh7 {[%clk 0:00:01]} 61. Bg7 {[%clk 0:00:03]}  Kxa5 {[%clk 0:00:02]} 62. e5 {[%clk 0:00:03]}  Kb5 {[%clk 0:00:01]} 63. f4 {[%clk 0:00:04]}  Kc6 {[%clk 0:00:02]} 64. f5 {[%clk 0:00:04]}  Kd7 {[%clk 0:00:01]} 65. e6+ {[%clk 0:00:04]}  Ke7 {[%clk 0:00:01]} 66. Kd4 {[%clk 0:00:04]}  a5 {[%clk 0:00:01]} 67. Kd5 {[%clk 0:00:04]}  a4 {[%clk 0:00:00]} 68. f6+ {[%clk 0:00:05]} 1-0


[Site "https://www.chess.com"]

[Event "Titled Tuesday Blitz November 14 Late 2023"]
[White "Grossboss19"]
[Black "Fernandez Reyes, Lisandro"]
[BlackFideId "3504190"]
[WhiteElo "2481"]
[BlackElo "2593"]
[Result "1-0"]
[Round "10"]
[TimeControl "180+1"]
[Date "2023.11.14"]
[WhiteClock "0:00:37"]
[BlackClock "0:01:43"]
[Board "36"]

1. Nf3 {[%clk 0:02:39]}  Nf6 {[%clk 0:02:57]} 2. c3 {[%clk 0:02:39]}  d5 {[%clk 0:02:57]} 3. d4 {[%clk 0:02:40]}  g6 {[%clk 0:02:57]} 4. Bf4 {[%clk 0:02:40]}  Bg7 {[%clk 0:02:58]} 5. e3 {[%clk 0:02:39]}  O-O {[%clk 0:02:58]} 6. h3 {[%clk 0:02:39]}  c5 {[%clk 0:02:59]} 7. Nbd2 {[%clk 0:02:39]}  Qb6 {[%clk 0:02:59]} 8. Qb3 {[%clk 0:02:38]}  Nc6 {[%clk 0:02:57]} 9. Bd3 {[%clk 0:02:35]}  c4 {[%clk 0:02:57]} 10. Qxb6 {[%clk 0:02:35]}  axb6 {[%clk 0:02:57]} 11. Bc2 {[%clk 0:02:27]}  b5 {[%clk 0:02:58]} 12. Ne5 {[%clk 0:02:28]}  Nxe5 {[%clk 0:02:50]} 13. Bxe5 {[%clk 0:02:27]}  Nd7 {[%clk 0:02:48]} 14. Bxg7 {[%clk 0:02:23]}  Kxg7 {[%clk 0:02:49]} 15. a3 {[%clk 0:02:21]}  e5 {[%clk 0:02:49]} 16. O-O {[%clk 0:02:16]}  f5 {[%clk 0:02:49]} 17. Rae1 {[%clk 0:02:07]}  e4 {[%clk 0:02:47]} 18. f3 {[%clk 0:01:59]}  Nf6 {[%clk 0:02:43]} 19. Rf2 {[%clk 0:01:57]}  Bd7 {[%clk 0:02:41]} 20. Ref1 {[%clk 0:01:56]}  f4 {[%clk 0:02:39]} 21. Re1 {[%clk 0:01:51]}  Rae8 {[%clk 0:02:38]} 22. fxe4 {[%clk 0:01:44]}  fxe3 {[%clk 0:02:34]} 23. Rxe3 {[%clk 0:01:43]}  dxe4 {[%clk 0:02:34]} 24. Nxe4 {[%clk 0:01:37]}  Nd5 {[%clk 0:02:34]} 25. Rxf8 {[%clk 0:01:29]}  Nxe3 {[%clk 0:02:34]} 26. Rxe8 {[%clk 0:01:29]}  Bxe8 {[%clk 0:02:34]} 27. Nd6 {[%clk 0:01:22]}  Bc6 {[%clk 0:02:34]} 28. Be4 {[%clk 0:01:20]}  Nd1 {[%clk 0:02:32]} 29. d5 {[%clk 0:01:16]}  Bd7 {[%clk 0:02:30]} 30. Nxb7 {[%clk 0:01:15]}  Kf6 {[%clk 0:02:29]} 31. Nc5 {[%clk 0:01:13]}  Ke7 {[%clk 0:02:30]} 32. Bc2 {[%clk 0:01:02]}  Nxb2 {[%clk 0:02:29]} 33. Kf2 {[%clk 0:01:01]}  Be8 {[%clk 0:02:28]} 34. Ke3 {[%clk 0:01:01]}  Bf7 {[%clk 0:02:14]} 35. Kd4 {[%clk 0:01:01]}  h5 {[%clk 0:02:08]} 36. Ke5 {[%clk 0:00:59]}  g5 {[%clk 0:02:04]} 37. d6+ {[%clk 0:00:58]}  Kd8 {[%clk 0:02:05]} 38. Nb7+ {[%clk 0:00:52]}  Ke8 {[%clk 0:02:02]} 39. Bf5 {[%clk 0:00:37]}  Nd3+ {[%clk 0:01:43]} 40. Kf6 {[%clk 0:00:37]} 1-0


[Site "https://www.chess.com"]

[Event "Titled Tuesday Blitz November 14 Late 2023"]
[White "Bettalli, Francesco"]
[Black "Mazzilli, Piero"]
[WhiteFideId "2816453"]
[BlackFideId "807087"]
[WhiteElo "2582"]
[BlackElo "2389"]
[Result "1-0"]
[Round "10"]
[TimeControl "180+1"]
[Date "2023.11.14"]
[WhiteClock "0:01:43"]
[BlackClock "0:00:00"]
[Board "37"]

1. d4 {[%clk 0:03:00]}  d5 {[%clk 0:02:59]} 2. Nc3 {[%clk 0:03:00]}  Nf6 {[%clk 0:02:56]} 3. Bf4 {[%clk 0:02:58]}  c6 {[%clk 0:02:56]} 4. e3 {[%clk 0:02:57]}  Bf5 {[%clk 0:02:55]} 5. f3 {[%clk 0:02:57]}  e6 {[%clk 0:02:53]} 6. g4 {[%clk 0:02:58]}  Bg6 {[%clk 0:02:53]} 7. h4 {[%clk 0:02:58]}  h5 {[%clk 0:02:52]} 8. g5 {[%clk 0:02:54]}  Nfd7 {[%clk 0:02:52]} 9. Bd3 {[%clk 0:02:55]}  Bxd3 {[%clk 0:02:48]} 10. Qxd3 {[%clk 0:02:56]}  Bb4 {[%clk 0:02:47]} 11. Ne2 {[%clk 0:02:55]}  g6 {[%clk 0:02:46]} 12. a3 {[%clk 0:02:55]}  Qa5 {[%clk 0:02:44]} 13. Kf2 {[%clk 0:02:54]}  Bxc3 {[%clk 0:02:42]} 14. Nxc3 {[%clk 0:02:55]}  O-O {[%clk 0:02:19]} 15. e4 {[%clk 0:02:50]}  Re8 {[%clk 0:01:59]} 16. Rhe1 {[%clk 0:02:46]}  Na6 {[%clk 0:01:57]} 17. b4 {[%clk 0:02:44]}  Qb6 {[%clk 0:01:46]} 18. exd5 {[%clk 0:02:42]}  exd5 {[%clk 0:01:43]} 19. Na4 {[%clk 0:02:39]}  Qd8 {[%clk 0:01:40]} 20. Rxe8+ {[%clk 0:02:38]}  Qxe8 {[%clk 0:01:41]} 21. Re1 {[%clk 0:02:38]}  Qf8 {[%clk 0:01:40]} 22. Qe2 {[%clk 0:02:31]}  b5 {[%clk 0:01:05]} 23. Nb2 {[%clk 0:02:28]}  Nab8 {[%clk 0:00:33]} 24. Qe8 {[%clk 0:02:16]}  a5 {[%clk 0:00:22]} 25. Bd6 {[%clk 0:02:04]}  Qxe8 {[%clk 0:00:21]} 26. Rxe8+ {[%clk 0:02:05]}  Kh7 {[%clk 0:00:22]} 27. Nd3 {[%clk 0:02:04]}  axb4 {[%clk 0:00:20]} 28. axb4 {[%clk 0:02:04]}  Ra2 {[%clk 0:00:20]} 29. Bxb8 {[%clk 0:02:03]}  Ra8 {[%clk 0:00:19]} 30. Rd8 {[%clk 0:01:45]}  Nxb8 {[%clk 0:00:19]} 31. Ne5 {[%clk 0:01:46]}  Ra2 {[%clk 0:00:16]} 32. Rxb8 {[%clk 0:01:45]}  Rxc2+ {[%clk 0:00:16]} 33. Kg3 {[%clk 0:01:44]}  Rd2 {[%clk 0:00:05]} 34. Nd7 {[%clk 0:01:43]}  f5 {[%clk 0:00:03]} 35. gxf6 {[%clk 0:01:43]}  Rxd4 {[%clk 0:00:00]} 36. f7 {[%clk 0:01:43]} 1-0


[Site "https://www.chess.com"]